[Event "8th Montevideo Open 2025"]
[Site "Montevideo"]
[Date "2025.02.01"]
[Round "2.3"]
[White "Manteiga, Franco"]
[Black "Villca, Julian"]
[Result "0-1"]
[Annotator "TA"]
[ECO "D36"]
[WhiteElo "2029"]
[BlackElo "2413"]
[PlyCount "108"]
[EventDate "2025.02.01"]
[EventType "swiss"]
[EventCountry "URU"]
[SourceTitle "playchess.com"]
[Source "ChessBase"]
[SourceQuality "1"]
[TimeControl "5400+30"]

{[%evp 25,108,4,28,0,26,14,26,19,30,30,48,56,116,54,87,45,37,43,60,39,37,35,34,27,39,20,22,22,24,20,34,49,45,0,28,3,43,25,50,18,18,0,0,0,0,0,0,0,0,-5,0,-301,-299,-333,-333,-333,-333,-339,-339,-289,-266,-347,-345,-370,-375,-432,-389,-476,-390,-411,-413,-411,-417,-791,-791,-1260,-1090,-864,-849,-1207,-743,-3115,-2962,-2456,-6325]} 1. d4 {[%emt 0:00:02]} d5 {[%emt 0:06:38]} 2. c4 {[%emt 0:00:46]} e6 {[%emt 0:00:10]} 3. Nc3 {[%emt 0:00:08]} Nf6 {[%emt 0:00:05]} 4. cxd5 {[%emt 0:00:12]} exd5 {[%emt 0:00:06]} 5. Bg5 {[%emt 0:00:08]} Be7 {[%emt 0:00:05]} 6. e3 {[%emt 0:00:10]} h6 {[%emt 0:00:04]} 7. Bh4 {[%emt 0:01:46]} O-O {[%emt 0:00:09]} 8. Bd3 {[%emt 0:00:48]} c6 {[%emt 0:00:06]} 9. Qc2 {[%emt 0:00:55]} Re8 {[%emt 0:00:05]} 10. Nf3 {[%emt 0:02:33]} Nbd7 {[%emt 0:00:07]} 11. O-O {[%emt 0:00:23]} Ne4 {[%emt 0:00:06]} 12. Bxe7 {[%emt 0:02:53]} Qxe7 {[%emt 0:00:01]} 13. Rab1 {[%emt 0:05:48]} a5 {[%emt 0:00:08]} 14. Rbe1 {[%emt 0:05:03] D36: Queen's Gambit Declined: Exchange Variation: Main line (5 Bg5 c6 6 Qc2).} h5 $146 {[%emt 0:04:31]} (14... Nxc3 15. Qxc3 Nf6 16. Ne5 Ne4 17. Qc2 f6 18. Ng6 Qf7 19. Nf4 f5 20. Be2 Nf6 21. Nd3 Be6 {1-0 Khegay,D (2528)-Mamedjarova,T (2309) Titled Tuesday intern op 7th July blitz 2020 (1)}) 15. Nd2 {[%emt 0:05:10]} Ndf6 {[%emt 0:00:07]} 16. f3 {[%emt 0:01:39] White has an edge.} Nxd2 {[%emt 0:00:31]} 17. Qxd2 {[%emt 0:00:05]} Qd6 {[%emt 0:13:57]} 18. Qf2 {[%emt 0:07:02]} Re7 {[%emt 0:05:24]} (18... Bd7 $14) 19. h3 {[%emt 0:05:23]} (19. e4 $16 {and e5 should not be overlooked} dxe4 20. fxe4 (20. Nxe4 Nxe4 21. fxe4 Be6 $11)) 19... c5 $14 {[%emt 0:01:02]} 20. Nb5 {[%emt 0:17:56]} (20. e4 {keeps more tension.} dxe4 21. fxe4 Qxd4 22. e5) 20... Qb6 {[%emt 0:00:32]} 21. dxc5 {[%emt 0:01:07]} Qxc5 {[%emt 0:00:04]} 22. Nd4 {[%emt 0:00:45] Against Bf5} Bd7 {[%emt 0:00:13]} 23. Rc1 {[%emt 0:02:19]} Qb6 {[%emt 0:00:08]} 24. Rc3 {[%emt 0:01:19]} Rae8 {[%emt 0:00:14]} 25. Bb1 {[%emt 0:02:23]} a4 {[%emt 0:00:33]} 26. a3 {[%emt 0:01:01]} g6 {[%emt 0:00:28]} 27. Rfc1 {[%emt 0:01:46]} h4 {[%emt 0:00:46]} 28. Ba2 {[%emt 0:02:00]} Re5 {[%emt 0:01:18]} 29. b4 {[%emt 0:07:11][%cal Oc1d1]} (29. Qxh4 Rxe3 30. Rc5 Qd6 $17 (30... Qxb2 31. Qxf6 Qxa2 32. Rc7 $11)) 29... Kg7 {[%emt 0:08:52]} 30. Rd3 {[%emt 0:09:39][%cal Oc1c3]} (30. Qxh4 $2 Rxe3 31. Rxe3 Rxe3 $19) 30... Qd6 {[%emt 0:08:55]} 31. Rcc3 {[%emt 0:00:20]} (31. Qxh4 Rxe3 32. Rcd1 Rxd3 33. Rxd3 Nh5 $17) 31... Rh8 {[%emt 0:02:15]} 32. Ne2 {[%emt 0:00:53]} Bb5 {[%emt 0:00:05]} 33. Rd4 {[%emt 0:00:14]} (33. Bc4 $5 Bc6 (33... Bxc4 34. Rxc4 Qe7 35. Rcc3 $14) 34. Nd4 $14) 33... Bxe2 {[%emt 0:00:15]} 34. Qxe2 {[%emt 0:00:05]} Rhe8 {[%emt 0:03:46]} 35. Qd2 {[%emt 0:02:18][%cal Oc3d3]} (35. Rxh4 Qb6 36. Qb2 Rxe3 37. Rxe3 Rxe3 $17 (37... Qxe3+ $2 38. Kh2 $19)) 35... Qe6 {[%emt 0:03:55][%cal Re5e3]} 36. Kf2 {[%emt 0:03:59]} (36. Rxh4 Rxe3 37. Qxe3 Qxe3+ 38. Rxe3 Rxe3 $17) 36... Qf5 $1 {[%emt 0:00:06] Against Rcd3} 37. Rf4 {[%emt 0:00:45]} (37. Rxh4 g5 (37... Ne4+ 38. Rxe4 dxe4 39. f4 $17) 38. Rg4 Ne4+ (38... Nxg4+ 39. hxg4 Qf6 40. Qd4 $15) 39. Rxe4 dxe4 $17) 37... Qg5 {[%emt 0:00:23]} 38. Kg1 $2 {[%emt 0:02:09][%mdl 8192] [#] White is on the road to losing.} (38. Rd4 $11 {and White is okay.}) 38... Rxe3 $3 $19 {[%emt 0:04:45][%mdl 512]} 39. Rxe3 {[%emt 0:02:37]} Qxf4 {[%emt 0:00:05]} 40. Rd3 {[%emt 0:00:29]} Qxd2 {[%emt 0:02:20]} 41. Rxd2 {[%emt 0:00:01][%mdl 4096] Endgame KRB-KRN. Black is a pawn up.} Re3 {[%emt 0:00:08]} 42. Bxd5 {[%emt 0:00:08]} b6 {[%emt 0:00:04]} ({Much less strong is} 42... Rxa3 43. Bxb7 Ra1+ 44. Kf2 $19) 43. Bc4 {[%emt 0:03:31]} Rxa3 {[%emt 0:00:26]} 44. Kf2 {[%emt 0:02:44]} Rc3 {[%emt 0:00:34]} 45. Bb5 {[%emt 0:00:13]} a3 {[%emt 0:00:07]} 46. Ba4 {[%emt 0:00:59] [#]} Nd5 $1 {[%emt 0:01:01]} 47. Rxd5 {[%emt 0:00:53] KRB-KR} a2 {[%emt 0:00:05]} 48. Rd1 {[%emt 0:00:06] [#]} Ra3 $1 {[%emt 0:00:02]} 49. Ra1 {[%emt 0:00:06]} (49. Bc6 $142 a1=Q (49... a1=B 50. Rd7 $11) 50. Rxa1 Rxa1 51. Ke3) 49... Rxa4 {[%emt 0:00:03] Black is clearly winning.} 50. Ke3 {[%emt 0:02:55]} Kf6 {[%emt 0:00:06][%cal Ob6b5]} (50... Rxb4 $2 51. Rxa2 Kf6 52. Ra7 $17) 51. Kd3 {[%emt 0:00:36]} b5 {[%emt 0:00:05][%cal Of6e5]} (51... Rxb4 52. Rxa2 b5 53. Kc3 $15) 52. Ke3 {[%emt 0:01:11]} Kf5 {[%emt 0:00:06][%cal Of5e5] aiming for ...Ke5!.} (52... Rxb4 $2 53. Rxa2 Ke5 54. Ra7 $19) 53. Kd4 {[%emt 0:00:53]} Rxb4+ {[%emt 0:00:06]} 54. Kc3 {[%emt 0:00:10]} Ra4 {[%emt 0:41:17] Weighted Error Value: White=0.72/Black=0.22 (precise)   Loses game:     	White=1     	---        Mistake:       	White=2     	Black=1      Inaccurate:     	White=5     	Black=3      OK:         	White=9     	Black=13     Best:        	---       	Black=4      Strong:       	---       	Black=2} (54... Rc4+ $142 55. Kd2 Ra4) 0-1

[Event "8th Montevideo Open 2025"]
[Site "Montevideo"]
[Date "2025.02.01"]
[Round "2.4"]
[White "Martello, Benjamin"]
[Black "Hoffman, Alejandro"]
[Result "0-1"]
[Annotator "TA"]
[ECO "A07"]
[WhiteElo "1968"]
[BlackElo "2368"]
[PlyCount "70"]
[EventDate "2025.02.01"]
[EventType "swiss"]
[EventCountry "URU"]
[SourceTitle "playchess.com"]
[Source "ChessBase"]
[SourceQuality "1"]
[TimeControl "5400+30"]

{[%evp 13,70,9,3,0,-7,-7,0,0,0,0,0,-18,4,0,0,-7,0,0,7,-3,0,-2,-8,-25,-9,-47,-48,-54,0,-60,-56,-97,-99,-108,-42,-225,-232,-320,-302,-320,-301,-322,-327,-336,-336,-373,-335,-339,-322,-472,-471,-549,-511,-558,-558,-548,-562,-554,-545]} 1. Nf3 {[%emt 0:00:38]} g6 {[%emt 0:01:06]} 2. g3 {[%emt 0:00:12]} Bg7 {[%emt 0:00:10]} 3. Bg2 {[%emt 0:00:04]} e5 {[%emt 0:00:19]} 4. d3 {[%emt 0:00:22]} d5 {[%emt 0:00:17]} 5. O-O {[%emt 0:00:45]} Ne7 {[%emt 0:00:11]} 6. e4 {[%emt 0:01:52]} O-O {[%emt 0:00:47]} 7. exd5 {[%emt 0:02:18]} Nxd5 {[%emt 0:00:16]} 8. Re1 {[%emt 0:00:23] A07: Réti Opening: New York and Capablanca Systems.} Nc6 {[%emt 0:00:16]} 9. c3 {[%emt 0:02:16]} h6 {[%emt 0:01:53]} 10. Nbd2 {[%emt 0:03:15] The position is equal.} Nb6 {[%emt 0:06:38]} 11. Nb3 {[%emt 0:09:57]} Re8 $146 {[%emt 0:06:03]} (11... a5 12. a4 g5 13. Nc5 Nd7 14. Be3 Qe7 15. Nxd7 Bxd7 16. d4 e4 17. d5 Nd8 {1-0 Nikolaou,G (2257)-Ikonomopoulou,M (2029) Athens Acropolis op 2007 (4.36)}) 12. d4 {[%emt 0:05:05]} exd4 {[%emt 0:00:39]} 13. Rxe8+ {[%emt 0:00:07]} Qxe8 {[%emt 0:00:30]} 14. Nbxd4 {[%emt 0:00:30]} Nxd4 {[%emt 0:00:30]} 15. Nxd4 {[%emt 0:00:30]} c6 {[%emt 0:00:30]} 16. Bf4 {[%emt 0:14:52]} g5 {[%emt 0:02:13]} 17. Bc1 {[%emt 0:08:57]} Bd7 {[%emt 0:00:26]} 18. Nb3 {[%emt 0:02:18]} Rd8 {[%emt 0:02:36][%cal Od7h3]} 19. Bf1 {[%emt 0:02:24] [#]} Bh3 $1 {[%emt 0:06:37]} 20. Bd2 {[%emt 0:00:34]} Bf5 {[%emt 0:00:30]} (20... Be6 $15 21. Qc2 Nc4) 21. Qe1 {[%emt 0:00:30]} (21. Qf3 $11 Qd7 22. Re1) 21... Na4 $15 {[%emt 0:00:30]} 22. Na5 {[%emt 0:10:33]} Qd7 {[%emt 0:10:17] Black has more active pieces.} (22... Nxb2 23. Qxe8+ Rxe8 24. Nxb7 $15) 23. Bc1 {[%emt 0:02:10]} Qd1 {[%emt 0:08:37]} ({Better is} 23... b6 $17 24. Nc4 Nc5) 24. Qxd1 $2 {[%emt 0:04:25] This costs White the game.} ({White must play} 24. Be3 $15 Qd7 25. Qc1) 24... Rxd1 $19 {[%emt 0:00:08]} 25. Nc4 {[%emt 0:00:04] [#] White is weak on the light squares} Rxf1+ $1 {[%emt 0:02:41][%mdl 512]} 26. Kxf1 {[%emt 0:00:10]} Bd3+ {[%emt 0:00:05]} 27. Ke1 {[%emt 0:00:52]} Bxc4 {[%emt 0:00:09]} 28. Kd2 {[%emt 0:00:54]} Be6 {[%emt 0:00:55]} 29. f3 {[%emt 0:01:02]} b6 {[%emt 0:00:44]} 30. g4 {[%emt 0:01:07]} f5 {[%emt 0:00:48]} 31. h3 {[%emt 0:00:13]} (31. Kc2 {was worth a try.}) 31... f4 {[%emt 0:00:14] Black is clearly winning.} 32. Rb1 {[%emt 0:01:24]} Bd5 {[%emt 0:02:02]} 33. Ke2 {[%emt 0:00:09]} Bxa2 {[%emt 0:00:17]} 34. Ra1 {[%emt 0:00:07]} Bc4+ {[%emt 0:00:08]} 35. Kd2 {[%emt 0:00:13]} b5 {[%emt 0:02:55] Weighted Error Value: White=0.32/Black=0.10 (very precise)   Loses game:     	White=1     	---        Mistake:       	White=2     	Black=2      Inaccurate:     	White=3     	---        OK:         	White=6     	Black=12     Best:        	White=1     	---} 0-1

[Event "8th Montevideo Open 2025"]
[Site "Montevideo"]
[Date "2025.02.01"]
[Round "2.5"]
[White "Lanzilotta, Marcelo"]
[Black "Villegas, Franco"]
[Result "0-1"]
[Annotator "TA"]
[ECO "B22"]
[WhiteElo "1958"]
[BlackElo "2325"]
[PlyCount "62"]
[EventDate "2025.02.01"]
[EventType "swiss"]
[EventCountry "URU"]
[SourceTitle "playchess.com"]
[Source "ChessBase"]
[SourceQuality "1"]
[TimeControl "5400+30"]

{[%evp 9,62,44,51,48,57,56,76,56,90,24,31,0,0,0,37,14,0,6,30,0,0,0,0,-16,-18,-55,-25,-31,-23,-22,0,-20,-19,-34,-8,-77,-29,-26,-31,-37,-20,-73,-48,-60,-79,-78,-82,-190,-175,-1203,-1190,-29997,-29998,-29998,-29999]} 1. e4 {[%emt 0:22:12][%cal Be2e4,Be4e5][%mdl 32]} c5 {[%emt 0:00:30]} 2. c3 {[%emt 0:00:01][%cal Bc2c3,Bc3d4][%mdl 32]} Nf6 {[%emt 0:00:19]} 3. d3 {[%emt 0:00:02]} d5 {[%emt 0:00:59]} 4. e5 {[%emt 0:00:06]} Ng4 {[%emt 0:02:16]} 5. d4 {[%emt 0:01:25]} Nc6 {[%emt 0:01:32]} 6. Nf3 {[%emt 0:03:37]} (6. dxc5 Ngxe5 (6... Ncxe5 7. b4 $11) 7. Nd2 Ng6 $15) 6... cxd4 {[%emt 0:08:10]} 7. cxd4 {[%emt 0:00:16]} g6 {[%emt 0:05:33]} 8. Nc3 {[%emt 0:02:37] White is better.} f6 {[%emt 0:02:35][%cal Bf7f6,Bf6e5,Be5d4][%mdl 32]} 9. Be2 {[%emt 0:04:40]} (9. h3 $16) 9... Bg7 $11 {[%emt 0:01:47][%cal Rf6e5]} 10. h3 {[%emt 0:07:10]} fxe5 $1 {[%emt 0:01:03]} 11. hxg4 {[%emt 0:01:16] Strongly threatening Nxe5.} (11. dxe5 {simplifies} Ngxe5 12. Qxd5 Qxd5 13. Nxd5 Nxf3+ 14. Bxf3 O-O 15. Bd1) 11... exd4 {[%emt 0:00:05]} 12. Nb5 {[%emt 0:01:55]} e5 {[%emt 0:03:04][%cal Oa7a6]} 13. Bg5 {[%emt 0:05:50]} Qd7 {[%emt 0:01:16][%cal Oa7a6]} 14. Bh6 {[%emt 0:02:34]} (14. Qd2 $5) 14... Bxh6 {[%emt 0:00:51]} 15. Rxh6 {[%emt 0:00:03]} a6 {[%emt 0:00:07]} 16. Nbxd4 {[%emt 0:00:21]} exd4 {[%emt 0:00:20]} 17. Nxd4 {[%emt 0:00:06]} Qg7 {[%emt 0:01:49]} 18. Nxc6 {[%emt 0:00:01]} bxc6 {[%emt 0:00:10]} 19. Qd2 {[%emt 0:05:33]} O-O {[%emt 0:00:30]} 20. Rh3 {[%emt 0:04:53]} Rb8 {[%emt 0:02:10]} 21. Rc3 {[%emt 0:03:04][%cal Of2f3]} Qe5 {[%emt 0:02:53]} 22. Qe3 {[%emt 0:08:18] [#]} (22. Kf1 $11) 22... Qxe3 {[%emt 0:12:41]} ({Better is} 22... Qh2 $1 $17 {[%cal Rh2g1] White must now prevent ...Qg1+.} 23. O-O-O Qxg2 24. Rxc6 (24. Bf3 $2 Rxf3 25. Qxf3 Qxf3 $19) 24... Bxg4 (24... Rxf2 25. Qe5 $14) 25. Bxg4 Qxg4) 23. fxe3 {[%emt 0:08:56]} Rxb2 {[%emt 0:00:48]} 24. Rxc6 {[%emt 0:17:34][%cal Oe2f3]} d4 {[%emt 0:00:28]} 25. Bc4+ {[%emt 0:00:00]} (25. Bxa6 $2 {too greedy.} Bxa6 (25... Bxg4 26. exd4 Rxg2 27. Rac1 $19) 26. O-O-O Rff2 (26... Rxg2 $2 27. Rxa6 dxe3 28. Re1 $19) (26... Rxa2 $2 27. Kb1 $19) 27. Rxd4 Rxa2 $19) (25. exd4 Re8 26. Kf1 Rexe2 $19 (26... Rbxe2 27. Rxc8 Rxc8 28. Kxe2 $11)) (25. Rac1 $11 {remains equal.} Bb7 26. R6c2 Rxc2 27. Rxc2 dxe3 28. g3) 25... Kh8 $17 {[%emt 0:00:51] Black is more active.} 26. O-O-O {[%emt 0:00:00]} Rxg2 {[%emt 0:01:20]} 27. exd4 {[%emt 0:00:00]} Bxg4 {[%emt 0:00:45]} 28. Rh1 {[%emt 0:00:00] [#]} (28. Rd2 $17 Bf3 29. Rxa6) 28... Bf5 $1 $19 {[%emt 0:01:27] aiming for ...Rc2+.} 29. Bxa6 $2 {[%emt 0:00:00]} (29. Be6) 29... Rb8 {[%emt 0:00:28][%csl Gf5][%cal Rb8b1]} 30. Kd1 {[%emt 0:00:00]} Rb1+ {[%emt 0:00:14]} 31. Rc1 {[%emt 0:00:00]} Bc2+ {[%emt 0:00:06] Weighted Error Value: White=0.70/Black=0.09 (flawless) .  Mistake:       	White=5     	Black=1      Inaccurate:     	White=3     	Black=3      OK:         	White=7     	Black=11     Best:        	White=1     	Black=2      Strong:       	---       	Black=1} 0-1

[Event "8th Montevideo Open 2025"]
[Site "Montevideo"]
[Date "2025.02.01"]
[Round "2.6"]
[White "Larrea, Manuel"]
[Black "Izquierdo, Sebastian"]
[Result "1-0"]
[Annotator "TA"]
[ECO "B12"]
[WhiteElo "2265"]
[BlackElo "1970"]
[PlyCount "49"]
[EventDate "2025.02.01"]
[EventType "swiss"]
[EventCountry "URU"]
[SourceTitle "playchess.com"]
[Source "ChessBase"]
[SourceQuality "1"]
[TimeControl "5400+30"]

{[%evp 9,49,15,18,11,69,69,91,58,88,82,152,152,153,143,154,139,238,277,291,283,362,354,407,385,375,311,382,313,439,498,625,547,547,570,568,570,542,552,752,735,752,720]} 1. e4 {[%emt 0:00:02][%cal Be2e4,Be4e5][%mdl 32]} c6 {[%emt 0:11:03]} 2. d4 {[%emt 0:02:05]} d5 {[%emt 0:00:09]} 3. e5 {[%emt 0:00:05]} Bf5 {[%emt 0:01:59]} 4. c4 {[%emt 0:00:27]} e6 {[%emt 0:01:53]} 5. Nc3 {[%emt 0:00:09]} h6 {[%emt 0:04:57]} 6. cxd5 {[%emt 0:04:24] B12: Caro-Kann: Advance Variation.} exd5 {[%emt 0:01:31]} (6... cxd5 $11 7. Bb5+ Nc6) 7. Nge2 $146 {[%emt 0:00:47]} (7. Bd3 Bxd3 8. Qxd3 a5 9. Nf3 Qd7 10. O-O b5 11. Re1 Qe6 12. Nh4 g5 13. Nf5 Nf6 14. Bxg5 hxg5 15. exf6 {1-0 Rocek,V (1068)-Ducharme,S (770) SN-2019-0-00998}) 7... Qd7 {[%emt 0:03:27]} 8. Nf4 {[%emt 0:08:00] White is better.} g5 {[%emt 0:00:55]} 9. Nh5 {[%emt 0:01:46]} Bg4 {[%emt 0:00:49]} (9... c5 $142) 10. Be2 $16 {[%emt 0:00:06]} Bxe2 {[%emt 0:03:11]} 11. Qxe2 {[%emt 0:00:29]} Na6 {[%emt 0:00:26]} 12. f4 {[%emt 0:02:38][%cal Bf2f4,Bf4f5][%mdl 32] White has more active pieces.} g4 {[%emt 0:04:47] [#]} (12... O-O-O $16 13. O-O (13. fxg5 Be7 $16) 13... Nc7) 13. O-O $1 $18 {[%emt 0:04:02]} O-O-O {[%emt 0:00:26]} 14. f5 {[%emt 0:02:04]} Bb4 {[%emt 0:01:35]} 15. Qxg4 {[%emt 0:01:47]} Ne7 {[%emt 0:01:34]} 16. Nf6 {[%emt 0:02:48]} Qc7 {[%emt 0:00:12]} 17. Bf4 {[%emt 0:05:16]} Qb6 {[%emt 0:02:54]} 18. Rad1 {[%emt 0:01:02][%cal Ba1d1,Bd1d2,Bd2b2,Bb2f2][%mdl 32]} Bxc3 {[%emt 0:00:37]} (18... Nc7 $142 19. Qh5 a6) 19. bxc3 {[%emt 0:00:09] White is clearly winning.} Qb2 {[%emt 0:00:05]} 20. Qg7 {[%emt 0:09:01][%csl LRf7,LRh6]} Rhg8 {[%emt 0:04:36]} 21. Nxg8 {[%emt 0:01:46]} Rxg8 {[%emt 0:00:09] [#]} 22. Rd2 $1 {[%emt 0:00:44]} (22. Qxf7 $2 Qxg2#) 22... Rxg7 {[%emt 0:00:36]} 23. Rxb2 {[%emt 0:00:06] f6 would now be deadly.} Nxf5 {[%emt 0:00:10]} 24. Bc1 {[%emt 0:01:00]} Ne7 {[%emt 0:06:44]} 25. Rbf2 {[%emt 0:13:46] White took control after the opening.   Weighted Error Value: White=0.18 (very precise) /Black=0.52  Mistake:       	---       	Black=4      Inaccurate:     	White=1     	Black=1      OK:         	White=6     	Black=5      Best:        	White=2     	---        Strong:       	White=1     	---} 1-0

[Event "8th Montevideo Open 2025"]
[Site "Montevideo"]
[Date "2025.02.01"]
[Round "2.7"]
[White "Varela, Mateo"]
[Black "De Dovitiis, Alejo"]
[Result "0-1"]
[Annotator "TA"]
[ECO "B15"]
[WhiteElo "1955"]
[BlackElo "2225"]
[PlyCount "120"]
[EventDate "2025.02.01"]
[EventType "swiss"]
[EventCountry "URU"]
[SourceTitle "playchess.com"]
[Source "ChessBase"]
[SourceQuality "1"]
[TimeControl "5400+30"]

{[%evp 9,120,35,79,11,14,0,10,12,20,0,18,0,14,35,41,0,16,-29,-26,-47,-45,-42,0,0,0,-146,-56,-105,-96,-108,-110,-186,-70,-185,-199,-165,-58,-255,-197,-210,-211,-487,-544,-527,-527,-521,-505,-677,-666,-729,-460,-459,-460,-464,-462,-443,-293,-567,-563,-605,-567,-766,-744,-849,-606,-479,-400,-623,-259,-257,-243,-286,-227,-408,-269,-366,-359,-312,-296,-261,-224,-829,-343,-481,-379,-481,-472,-452,-32,-28,-35,-36,-28,-28,-28,-28,0,0,0,0,0,0,0,-15,-12,-14,-14,-13,-12,-12,-10,-1137,-1109]} 1. e4 {[%emt 0:00:03]} c6 {[%emt 0:06:21]} 2. Nc3 {[%emt 0:00:07]} d5 {[%emt 0:00:06]} 3. Nf3 {[%emt 0:00:06]} g6 {[%emt 0:00:13]} 4. d4 {[%emt 0:00:29]} Bg7 {[%emt 0:00:10]} 5. Be2 {[%emt 0:03:48]} Nh6 {[%emt 0:01:23]} 6. e5 {[%emt 0:05:43] B15: Caro-Kann: 3 Nc3: 3...g6 and 3...dxe4 4 Nxe4 Nf6 5 Nxf6+ exf6.} (6. O-O $16) 6... f6 $11 {[%emt 0:02:01]} 7. h4 $146 {[%emt 0:06:41]} (7. O-O Nf7 8. exf6 Bxf6 9. Bf4 Nd7 10. Re1 O-O 11. Bf1 Qb6 12. Rb1 e5 13. dxe5 Nfxe5 14. Nxe5 Bxe5 15. Bxe5 Qxf2+ {1-0 Bodnaruk,A (2333)-Bhakti,K (2363) Speed Chess (Women) Play In 4 blitz 2024 (4)}) 7... Nf7 {[%emt 0:01:14]} 8. exf6 {The position is equal.} exf6 {[%emt 0:00:36]} 9. Bf4 {[%emt 0:07:47]} Bg4 {[%emt 0:03:28]} 10. Qd2 {[%emt 0:03:16][%cal Oh4h5]} Nd7 {[%emt 0:04:29]} 11. O-O-O {[%emt 0:05:48][%cal Oh4h5]} O-O {[%emt 0:03:42]} 12. Bd3 {[%emt 0:08:59]} b5 {[%emt 0:06:15]} 13. Rdg1 {[%emt 0:03:18]} Nb6 $1 {[%emt 0:08:12]} 14. Nh2 {[%emt 0:04:52]} Bd7 {[%emt 0:06:15]} 15. g4 {[%emt 0:07:23]} Nc4 {[%emt 0:00:11]} 16. Bxc4 {[%emt 0:04:30]} dxc4 {[%emt 0:01:50]} 17. g5 {[%emt 0:07:59]} (17. Ne4 $1 $11 {remains equal.}) 17... f5 {[%emt 0:06:27]} (17... fxg5 $17 18. hxg5 c5) 18. h5 {[%emt 0:02:07]} b4 {[%emt 0:00:30]} 19. hxg6 {[%emt 0:03:45]} hxg6 {[%emt 0:00:08]} 20. Nb1 {[%emt 0:08:25]} (20. Na4 $17 c5 21. Nxc5) 20... Be6 {[%emt 0:10:35]} (20... c5 $1 $19 {Threatens to win with ...Bc6.} 21. dxc5 Bc6 22. Qxd8 Raxd8) 21. Qxb4 {[%emt 0:04:27]} (21. Nf3 $15) 21... Qxd4 $19 {[%emt 0:00:17] Black attacks} 22. Be3 {[%emt 0:01:36] [#]} Qe5 {[%emt 0:03:17]} (22... Qd7 $1 $19 23. Nc3 Rfb8) 23. Nc3 $2 {[%emt 0:01:56]} (23. Nf3 $15 Qd5 24. Nh4 (24. Nbd2 $2 Rfb8 $19)) 23... Rab8 {[%emt 0:05:24]} 24. Qa3 {[%emt 0:02:06]} Bd5 {[%emt 0:02:18] Prevents Nf3} 25. Bc5 $2 {[%emt 0:04:29]} (25. Re1 {was called for.}) 25... Bxh1 {[%emt 0:01:28]} 26. Rxh1 {[%emt 0:00:54]} Rfd8 {[%emt 0:03:30]} 27. Be3 {[%emt 0:00:32]} f4 {[%emt 0:03:57]} 28. Bxa7 {[%emt 0:02:38]} Ra8 {[%emt 0:04:01]} 29. Qc5 {[%emt 0:00:29]} Qxg5 {[%emt 0:03:06]} 30. Qxg5 {[%emt 0:00:34]} Nxg5 {[%emt 0:00:10]} 31. Bb6 {[%emt 0:00:05]} Rdb8 {[%emt 0:03:17]} 32. Bc7 {[%emt 0:00:08]} Rf8 {[%emt 0:00:15]} 33. Rg1 $2 {[%emt 0:00:31]} (33. Ng4 {is the only way for White.}) 33... Ne6 {[%emt 0:00:35]} 34. Bd6 {[%emt 0:00:50]} Rfd8 {[%emt 0:00:27]} 35. Be7 {[%emt 0:00:36]} Rd7 {[%emt 0:00:21]} 36. Bh4 {[%emt 0:00:02]} Kf7 {[%emt 0:03:23]} 37. Nf3 {[%emt 0:00:18]} Ra5 {[%emt 0:00:47]} 38. a3 {[%emt 0:00:50]} (38. Ne4 $142) 38... Rh5 {[%emt 0:01:49]} (38... Bxc3 $142 39. bxc3 Rdd5 (39... Rxa3 40. Ne5+ Ke8 41. Kb2 $15)) 39. Ne4 {[%emt 0:01:06]} Nd4 {[%emt 0:00:28]} 40. Neg5+ {[%emt 0:00:41]} Kg8 {[%emt 0:00:28]} 41. Re1 {[%emt 0:00:11] Prevents Ne2+.} (41. Nxd4 Bxd4 (41... Rxh4 $2 42. Ndf3 $19) (41... Rxd4 $2 42. Nf3 $19) 42. Nf3) 41... Nxf3 {[%emt 0:01:06]} 42. Re8+ {[%emt 0:00:23]} Bf8 {[%emt 0:00:10]} 43. Nxf3 {[%emt 0:00:43]} Rhd5 {[%emt 0:01:55][%csl Gd7][%cal Rd5d1]} 44. Kb1 {[%emt 0:00:25]} c3 {[%emt 0:00:57]} 45. Ne5 $2 {[%emt 0:00:33]} (45. b4) 45... Rb7 {[%emt 0:02:09]} (45... Rxe5 $142 46. Rxe5 Rd1+ 47. Ka2 cxb2 48. Kxb2 Bg7) 46. b3 {[%emt 0:00:21]} (46. b4 $142 Kg7 47. Nxc6) 46... Rd1+ {[%emt 0:00:50]} 47. Ka2 {[%emt 0:00:02]} Rc1 {[%emt 0:00:34]} 48. Nxg6 {[%emt 0:00:57]} Kf7 {[%emt 0:00:34]} ({Black should try} 48... Rxc2+ $19 49. Kb1 Rb2+ (49... Rxb3+ $2 {loses.} 50. Kxc2 Rxa3 51. Nxf8 $18) 50. Kc1 R7xb3 51. Rxf8+ Kh7 (51... Kg7 52. Rxf4 Rb1+ 53. Kc2 $17)) 49. Rxf8+ $15 {[%emt 0:00:16]} Kxg6 {[%emt 0:00:04][%mdl 4096] Endgame KRR-KRB} 50. b4 $1 {[%emt 0:00:52]} Rxc2+ {[%emt 0:00:55]} 51. Kb3 {[%emt 0:00:04]} Rc1 {[%emt 0:00:32]} 52. Rxf4 {[%emt 0:00:40]} Rf7 {[%emt 0:00:54]} 53. Rc4 {[%emt 0:00:34][%csl LRc3,LRc6]} Rf3 {[%emt 0:00:17]} 54. Rxc6+ {[%emt 0:00:43]} Kh5 {[%emt 0:00:09]} 55. Bg3 {[%emt 0:00:21]} Rb1+ {[%emt 0:01:08]} 56. Ka2 {[%emt 0:00:50]} Rb2+ {[%emt 0:00:15][%mdl 1024] Black has compensation.} 57. Ka1 {[%emt 0:00:01][%cal Oc6c3] Rxc3! is the strong threat.} Re2 {[%emt 0:00:23]} 58. Kb1 {[%emt 0:00:56]} Rd3 {[%emt 0:00:25]} 59. Kc1 {[%emt 0:00:19] Wards off Rd1+} Ra2 {[%emt 0:01:31]} 60. Be5 $2 {[%emt 0:00:36][%mdl 8192] [#]} (60. b5 $11) 60... Rh3 $1 {[%emt 0:00:46] Weighted Error Value: White=0.81/Black=0.60  Loses game:     	White=2     	---        Missed win:     	---       	Black=1      Mistake:       	White=9     	Black=5      Inaccurate:     	White=5     	Black=4      OK:         	White=14    	Black=17     Best:        	White=4     	Black=2      Strong:       	White=1     	Black=2} ({Stronger than} 60... Rxf2 61. Rxc3 (61. Bxc3 Rg3 $11) 61... Rdd2 62. Rh3+ Kg4 63. Rh1 $11) (60... Rxa3 61. b5 $11) 0-1